fUSD/lending_fUSD_20240815
["ID","MTS","AMOUNT","RATE_DAILY","PERIOD"]
[335007367,1723737032669,-1096.62478645,0.00011,2]
[335007369,1723737032682,-283.58328289,0.00011,2]
[335007370,1723737032696,-300.0,0.00011,2]
[335007371,1723737032711,-602.886052,0.00011,2]
[335007378,1723737038493,-525.74332505,0.00010897,2]
[335007379,1723737038551,-776.7014,0.00010897,2]
[335007380,1723737038612,-6197.55527495,0.00010897,2]
[335007381,1723737038623,-489.57994998,0.000109,2]
[335007382,1723737038635,-608.0,0.00011,2]
[335007383,1723737038646,-2586.85699993,0.00011,2]
[335007384,1723737038660,-7768.1384,0.00011,2]
[335007385,1723737038674,-7146.2938,0.00011,2]
[335007386,1723737038687,-17006.65070178,0.00011,2]
[335007387,1723737038701,-678.64593533,0.00011,2]
[335007388,1723737038715,-2855.0,0.00011,2]
[335007389,1723737038729,-358.48667185,0.00011,2]
[335007390,1723737038840,-347.11103298,0.00011,2]
[335007391,1723737038855,-554.26539974,0.00011,2]
[335007392,1723737038898,-313.45681603,0.00011,2]
[335007393,1723737038912,-253451.82978877,0.00011,2]
[335007395,1723737038964,-1258.75000001,0.00011,2]
[335007441,1723737040353,-530.37784572,0.00011,2]
[335007442,1723737040368,-298.095,0.00011,2]
[335007443,1723737042547,-300.59930483,0.00011,2]
[335007449,1723737043057,-332961.29405224,0.00011,2]
[335007452,1723737043426,-42862.63419659,0.00011,2]
[335007453,1723737043440,-92339.98351137,0.00011,2]
[335007456,1723737043451,-286.4,0.00011,2]
[335007458,1723737043463,-2982.98,0.00011,2]
[335007460,1723737043474,-2347.58158213,0.00011,2]
[335007462,1723737043485,-4432.26839026,0.00011,2]
[335007464,1723737043496,-3024.61252761,0.00011,2]
[335007466,1723737043508,-547.46957672,0.00011,2]
[335007467,1723737043520,-1070.20960904,0.00011,2]
[335007484,1723737044683,-1700.6,0.00011,2]
[335007485,1723737044694,-6204.60000004,0.00011,2]
[335007486,1723737044707,-760.21,0.00011,2]
[335007487,1723737044719,-406.7306956,0.00011,2]
[335007488,1723737044730,-4699.99999998,0.00011,2]
[335007489,1723737044742,-11959.56,0.00011,2]
[335007490,1723737044794,-553.0,0.00011,2]
[335007491,1723737044805,-274.19049739,0.00011,2]
[335007492,1723737044816,-427.149998,0.00011,2]
[335007493,1723737044828,-1651.68579238,0.00011,2]
[335007494,1723737044840,-594.98517338,0.00011,2]
[335007495,1723737044851,-300.58999999,0.00011,2]
[335007496,1723737044863,-1637.0841609,0.00011,2]
[335007497,1723737044874,-4330.59626476,0.00011,2]
[335007498,1723737044885,-715.43335499,0.00011,2]
[335007499,1723737044897,-392.05000982,0.00011,2]
[335007500,1723737044908,-623.25,0.00011,2]
[335007501,1723737046365,-1235.87774031,0.00011,2]
[335007502,1723737046424,-603.16166683,0.00011,2]
[335007503,1723737046437,-7359.193961,0.00011,2]
[335007504,1723737046448,-17879.37516,0.00011,2]
[335007505,1723737046485,-1069.19252002,0.00011,2]
[335007506,1723737046601,-1027.23231092,0.00011,2]
[335007507,1723737046614,-1000.0,0.00011,2]
[335007547,1723737047147,-0.10107447,0.00011,2]
[335007549,1723737047158,-58111.80855634,0.00011,2]
[335007551,1723737047169,-349.99877428,0.00011,2]
[335007775,1723737446464,613.99,8.315e-05,2]
[335007776,1723737700439,155.0,9.943e-05,2]
[335007777,1723737708167,593.82704615,9.943e-05,2]
[335007778,1723737790131,160.0,0.00025,60]
[335007780,1723737911933,597.17,8.219e-05,2]
[335007781,1723737983646,1947.2,9.913e-05,2]
[335007782,1723737989286,422.9,9.981e-05,2]
[335007783,1723738157645,250.0,9.918e-05,2]
[335007784,1723738181420,109.68346708,9.957e-05,2]
[335007785,1723738181443,852.23653292,9.957e-05,2]
[335007788,1723738231440,-687.57263052,0.0001,2]
[335007789,1723738231452,-3689.24344746,0.0001,2]
[335007790,1723738231471,-329.14260328,0.0001,2]
[335007791,1723738231483,-66.75401874,0.0001,2]
[335007792,1723738231493,-550.0,0.0001,2]
[335007793,1723738231502,-168.54,0.00010075,2]
[335007794,1723738231512,-1406.83,0.00010075,2]
[335007795,1723738231521,-348.87,0.00010145,2]
[335007796,1723738231531,-82.16412026,0.00010146,2]
[335007797,1723738231711,-1674.81742135,0.00010146,2]
[335007798,1723738231723,-6075.0,0.00010146,2]
[335007799,1723738231736,-700.0,0.00010146,2]
[335007803,1723738237602,-482.78845839,0.00010146,2]
[335007805,1723738237611,-661.7044262,0.00010154,2]
[335007807,1723738237624,-7586.678313,0.00010154,2]
[335007811,1723738237659,-358.33485164,0.00010154,2]
[335007813,1723738237710,-1255.0,0.00010154,2]
[335007814,1723738237870,-14038.28240916,0.00010154,2]
[335007815,1723738237879,-169.87,0.00010169,2]
[335007816,1723738237888,-596.8,0.00010179,2]
[335007817,1723738237897,-999.99,0.00010179,2]
[335007818,1723738237906,-499.99,0.00010221,2]
[335007819,1723738237915,-301.1,0.00010281,2]
[335007820,1723738237923,-597.17,0.00010483,2]
[335007821,1723738237933,-178.79,0.00010669,2]
[335007822,1723738237941,-323.6234,0.000107,2]
[335007823,1723738237950,-150.0,0.00010799,2]
[335007824,1723738237959,-384.7387,0.000108,2]
[335007825,1723738237968,-1789.12638296,0.000108,2]
[335007826,1723738237980,-300.11699436,0.000108,2]
[335007827,1723738237990,-304.94405594,0.000108,2]
[335007828,1723738238002,-725.98785165,0.000108,2]
[335007829,1723738238014,-406.14743283,0.000108,2]
[335007830,1723738238025,-914.0500234,0.000108,2]
[335007831,1723738238036,-2166.78342138,0.000108,2]
[335007832,1723738238049,-6628.30439943,0.000108,2]
[335007845,1723738239508,-3512.67903515,0.000108,2]
[335007846,1723738239521,-2310.06028183,0.000108,2]
[335007847,1723738239532,-1330.64412431,0.000108,2]
[335007848,1723738239544,-2905.51171711,0.000108,2]
[335007849,1723738239556,-298.915,0.000108,2]
[335007850,1723738239568,-127657.92357965,0.000108,2]
[335007851,1723738239577,-1440.89806441,0.00010866,2]
[335007852,1723738239587,-3011.75999855,0.00010899,2]
[335007853,1723738239596,-155.0,0.00010899,2]
[335007854,1723738239606,-175.10094526,0.000109,2]
[335007855,1723738239615,-317.39714716,0.000109,2]
[335007856,1723738239625,-7500.0,0.000109,2]
[335007857,1723738239634,-327.34498201,0.000109,2]
[335007858,1723738239644,-593.82704615,0.00010949,2]
[335007859,1723738239656,-250.0,0.00010959,2]
[335007860,1723738239667,-150.0,0.00010959,2]
[335007861,1723738239677,-42443.7868716,0.00010998,2]
[335007862,1723738239687,-991.4119509,0.00010998,2]
[335007863,1723738239696,-214985.54941431,0.00011,2]
[335007864,1723738239713,-2805.1,0.00011,2]
[335007865,1723738239724,-2641.025,0.00011,2]
[335007866,1723738239780,-3249.95340702,0.00011,2]
[335007867,1723738239792,-1614.21694269,0.00011,2]
[335007868,1723738239804,-1585.78305731,0.00011,2]
[335007869,1723738239815,-3281.9,0.00011,2]
[335007940,1723738243686,-711.82512358,0.00011,2]
[335007941,1723738244759,-34145.60037915,0.00011,2]
[335007942,1723738244770,-538362.00000015,0.00011,2]
[335007943,1723738244782,-1247.11812676,0.00011,2]
[335007944,1723738244795,-898.71673132,0.00011,2]
[335007945,1723738244806,-1144.11354626,0.00011,2]
[335007946,1723738244817,-591.9999999,0.00011,2]
[335007947,1723738244828,-74735.26870853,0.00011,2]
[335007948,1723738244841,-405938.54860636,0.00011,2]
[335007949,1723738244850,-108047.21808261,0.00011,2]
[335007981,1723738245550,-335.451,0.00011,2]
[335007982,1723738245561,-2695.8483424,0.00011,2]
[335007983,1723738245605,-859.59283247,0.00011,2]
[335007984,1723738245616,-702795.37721058,0.00011,2]
[335007985,1723738245667,-1301.37556257,0.00011,2]
[335007986,1723738245679,-352.920276,0.00011,2]
[335007987,1723738245727,-296355.77503778,0.00011,2]
[335007988,1723738245737,-1274.87303,0.00011,2]
[335007989,1723738245747,-226.0,0.00011,2]
[335007990,1723738245756,-2138.9391761,0.00011006,2]
[335007991,1723738245765,-580.0,0.00011014,2]
[335007992,1723738245774,-782.0,0.00011014,2]
[335007993,1723738245784,-70380.64453771,0.00011014,2]
[335007994,1723738245804,-524.16922754,0.000109,2]
[335007995,1723738245813,-2272.28077246,0.00011014,2]
[335007996,1723738245824,-1430.54589821,0.00011014,2]
[335007999,1723738290093,1269.15931583,9.957e-05,2]
[335008000,1723739099217,2693.42383283,0.00025,60]
[335008001,1723739166456,507.46,9.982e-05,2]
[335008002,1723739232464,501.829616,0.00025,60]
[335008033,1723739431610,-155.0,0.00010026,2]
[335008037,1723739431620,-576.1,0.00010232,2]
[335008040,1723739431629,-8135.29917167,0.00010663,2]
[335008048,1723739431671,-530.87099182,0.00010663,2]
[335008050,1723739431682,-943.09082566,0.00010663,2]
[335008051,1723739431693,-301.2900896,0.00010663,2]
[335008052,1723739431704,-4228.0863352,0.00010663,2]
[335008053,1723739431715,-658.25,0.00010663,2]
[335008054,1723739431731,-2109.43741355,0.00010663,2]
[335008055,1723739431743,-6993.6751725,0.00010663,2]
[335008056,1723739431755,-309.38389104,0.00010699,2]
[335008057,1723739431766,-309.38389104,0.00010699,2]
[335008058,1723739431776,-9476.5543,0.000107,2]
[335008059,1723739431785,-1062.39419,0.000109,2]
[335008060,1723739431794,-418.83651901,0.000109,2]
[335008061,1723739431803,-183.13334238,0.00010913,2]
[335008062,1723739431812,-2861.80723797,0.00010913,2]
[335008063,1723739431822,-277.7225038,0.00010913,2]
[335008064,1723739431831,-2405.03258722,0.00010913,2]
[335008065,1723739431840,-717.30735999,0.00010959,2]
[335008066,1723739431849,-587.14,0.00010959,2]
[335008067,1723739431859,-1184.68636019,0.0001099,2]
[335008068,1723739431868,-1184.68636019,0.0001099,2]
[335008069,1723739431877,-165.86544254,0.00010997,2]
[335008070,1723739431889,-150.0,0.00010999,2]
[335008071,1723739431900,-50960.27327487,0.00011,2]
[335008072,1723739431912,-10283.09270712,0.00011,2]
[335008075,1723739431931,-19294.32589896,0.00011,2]
[335008076,1723739431946,-23072.044,0.00011,2]
[335008077,1723739431959,-460.43123519,0.00011,2]
[335008078,1723739431971,-643986.83875705,0.00011,2]
[335008079,1723739431987,-1085.42033485,0.00011,2]
[335008080,1723739432001,-517.85511205,0.00011,2]
[335008081,1723739432012,-820.87408869,0.00011,2]
[335008082,1723739432023,-1910.04659137,0.00011,2]
[335008086,1723739437789,-281.55,0.00011,2]
[335008087,1723739437853,-355.55693075,0.00011,2]
[335008088,1723739437866,-1380.53146369,0.00011,2]
[335008089,1723739437880,-13958.78096152,0.00011,2]
[335008090,1723739437893,-438.848,0.00011,2]
[335008091,1723739437904,-3841.06164848,0.00011,2]
[335008092,1723739437916,-1028.76617241,0.00011,2]
[335008093,1723739437928,-394.14023996,0.00011,2]
[335008094,1723739437940,-822.49017547,0.00011,2]
[335008095,1723739437954,-3253.18471337,0.00011,2]
[335008096,1723739437970,-1463.76336,0.00011,2]
[335008097,1723739437982,-18716.99087636,0.00011,2]
[335008098,1723739437995,-6343.80348218,0.00011,2]
[335008099,1723739438006,-1251.34130064,0.00011,2]
[335008100,1723739438017,-729.82228752,0.00011,2]
[335008101,1723739438026,-289.4002629,0.00011,2]
[335008102,1723739438104,-972.57973115,0.00011,2]
[335008103,1723739438118,-2183.16426548,0.00011,2]
[335008104,1723739438130,-591.90175042,0.00011,2]
[335008105,1723739438167,-609.04084905,0.00011,2]
[335008106,1723739438178,-2084.0327375,0.00011,2]
[335008107,1723739438189,-2158.98320904,0.00011,2]
[335008108,1723739438228,-6337.13189121,0.00011,2]
[335008116,1723739439639,-502.36071293,0.00011,2]
[335008119,1723739439651,-939.63137312,0.00011,2]
[335008121,1723739439662,-441.48538942,0.00011,2]
[335008123,1723739439673,-902.16144431,0.00011,2]
[335008124,1723739439699,-2954.1894928,0.00011,2]
[335008125,1723739439711,-847.02556474,0.00011,2]
[335008126,1723739439816,-505.53116172,0.00011,2]
[335008127,1723739439828,-2141.25728077,0.00011,2]
[335008128,1723739439840,-630.25841339,0.00011,2]
[335008129,1723739439853,-2476.92546041,0.00011,2]
[335008130,1723739439866,-3474.04327968,0.00011,2]
[335008131,1723739439878,-3094.16293897,0.00011,2]
[335008132,1723739439892,-16876.40537994,0.00011,2]
[335008133,1723739439903,-7207.41919426,0.00011,2]
[335008134,1723739439914,-662.70634916,0.00011,2]
[335008135,1723739439941,-340134.43460052,0.00011,2]
[335008136,1723739441708,-2749.99999999,0.00011,2]
[335008183,1723739442719,-397.57634389,0.00011,2]
[335008184,1723739443538,-4100.05469248,0.00011,2]
[335008185,1723739443553,-1942.04386883,0.00011,2]
[335008197,1723739444709,-2498.71308687,0.00011,2]
[335008198,1723739444721,-486.24191228,0.00011,2]
[335008199,1723739444733,-8264.97603201,0.00011,2]
[335008200,1723739444745,-475.67259041,0.00011,2]
[335008201,1723739444757,-484.14467831,0.00011,2]
[335008202,1723739444768,-614.91,0.00011,2]
[335008203,1723739444780,-622.9,0.00011,2]
[335008204,1723739444792,-5200.0,0.00011,2]
[335008217,1723739445704,-711.38074383,0.00011,2]
[335008218,1723739445764,-549.85659396,0.00011,2]
[335008219,1723739445823,-1193.32162859,0.00011,2]
[335008220,1723739445835,-1520.08414769,0.00011,2]
[335008221,1723739445939,-2073.29355406,0.00011,2]
[335008222,1723739445951,-1774.4753,0.00011,2]
[335008223,1723739445964,-558.07149355,0.00011,2]
[335008224,1723739446005,-1094.0838,0.00011,2]
[335008228,1723739587528,581.12,8.232e-05,2]
[335008229,1723739635580,155.0,8.232e-05,10]
[335008230,1723739756493,1000.0,9.978e-05,2]
[335008231,1723739828843,5635.02415125,9.9e-05,2]
[335008232,1723739828864,388.33856093,9.9e-05,2]
[335008235,1723739852593,-550.0,0.0001,2]
[335008236,1723739852615,-200.0,0.0001,2]
[335008237,1723739852636,-250.0,0.00010103,2]
[335008238,1723739852657,-2251.42,0.00010116,2]
[335008239,1723739852678,-211.45,0.000102,2]
[335008240,1723739852700,-581.12,0.00010496,2]
[335008241,1723739852720,-178.79,0.00010599,2]
[335008242,1723739852741,-3167.40379618,0.00010599,2]
[335008243,1723739852764,-240.88,0.00010603,2]
[335008244,1723739852784,-2023.54,0.00010603,2]
[335008245,1723739852806,-300.0,0.000107,3]
[335008246,1723739852829,-150.0,0.00010747,2]
[335008247,1723739852849,-151.125835,0.00010767,2]
[335008248,1723739852871,-150.0,0.00010769,2]
[335008249,1723739852892,-151.02554851,0.00010775,2]
[335008250,1723739852914,-150.0,0.00010781,2]
[335008251,1723739852935,-700.0,0.000108,3]
[335008252,1723739852957,-150.0,0.00010857,2]
[335008253,1723739852977,-240.19,0.00010857,2]
[335008254,1723739852999,-150.00008826,0.00010887,2]
[335008255,1723739853020,-150.0,0.00010899,2]
[335008256,1723739853042,-300.0,0.00010899,2]
[335008257,1723739853065,-1308.7518,0.000109,2]
[335008258,1723739853087,-4380.0258,0.000109,2]
[335008259,1723739853108,-9967.7323,0.000109,2]
[335008260,1723739853130,-12946.54483205,0.000109,2]
[335008261,1723739886159,1269.37264104,9.978e-05,2]
[335008262,1723739894904,1096.81148529,9.978e-05,2]
[335008263,1723739895619,7245.47731274,9.978e-05,2]
[335008264,1723739895639,10000.0,9.978e-05,2]
[335008265,1723739895661,3154.19340313,9.978e-05,2]
[335008266,1723739953438,292.10908186,9.978e-05,2]
[335008267,1723739956593,155.12794164,9.978e-05,2]
[335008268,1723739963745,3070.25593273,9.978e-05,2]
[335008274,1723739971168,693.45613464,9.978e-05,2]
[335008275,1723739974613,2634.857506,9.978e-05,2]
[335008276,1723739974633,10000.0,9.978e-05,2]
[335008277,1723739974653,264.64426663,9.978e-05,2]
[335008278,1723740000196,1103.85048918,9.978e-05,2]
[335008279,1723740016307,2380.5308,9.9e-05,2]
[335008281,1723740057827,681.67,9.965e-05,2]
[335008282,1723740068669,693.45613464,9.9e-05,2]
[335008284,1723740074701,415.632,9.98e-05,2]
[335008285,1723740089446,280.87,9.976e-05,2]
[335008286,1723740090865,200.0,9.976e-05,2]
[335008287,1723740098674,693.45613464,9.9e-05,2]
[335008289,1723740113326,250.0,9.976e-05,2]
[335008290,1723740123078,272.23,9.976e-05,2]
[335008291,1723740123381,197.26,7.98e-05,2]
[335008292,1723740152600,882.76,8.219e-05,2]
[335008293,1723740164115,1683.64017491,9.964e-05,2]
[335008294,1723740164140,2258.96402203,9.964e-05,2]
[335008295,1723740175441,942.48,9.95e-05,2]
[335008296,1723740186815,1580.5,9.95e-05,2]
[335008297,1723740212736,693.45613464,7.98e-05,2]
[335008298,1723740216948,173.85,9.951e-05,2]
[335008299,1723740244859,4350.74984333,9.949e-05,2]
[335008300,1723740244880,4964.49015667,9.949e-05,2]
[335008301,1723740285900,314.91,9.941e-05,2]
[335008302,1723740296984,409.04,9.944e-05,2]
[335008303,1723740330685,693.69706602,9.949e-05,2]
[335008304,1723740336019,200.0,9.906e-05,2]
[335008307,1723740393143,934.83,9.883e-05,2]
[335008308,1723740453693,882.68,9.887e-05,2]
[335008309,1723740507938,156.76,9.884e-05,2]
[335008310,1723740523946,1443.59277731,9.884e-05,2]
[335008311,1723740523970,10000.0,9.884e-05,2]
[335008312,1723740523991,10000.0,9.884e-05,2]
[335008313,1723740524011,2456.40722269,9.884e-05,2]
[335008314,1723740530993,522.56,9.899e-05,2]
[335008315,1723740579111,340.83,9.884e-05,2]
[335008318,1723740585709,250.0,9.902e-05,2]
[335008320,1723740618583,153.96,9.9e-05,2]
[335008327,1723740631802,-204.72,0.00010031,2]
[335008328,1723740631811,-495.0,0.00010065,2]
[335008329,1723740631820,-243.93948572,0.0001026,2]
[335008330,1723740631914,-233.50051428,0.0001026,2]
[335008331,1723740631923,-150.0,0.00010384,2]
[335008332,1723740631932,-318.553,0.00010503,2]
[335008333,1723740631942,-300.0,0.000107,3]
[335008334,1723740631951,-933.74695683,0.000107,2]
[335008335,1723740631962,-5363.20000002,0.000107,2]
[335008336,1723740631974,-499.60047608,0.000107,2]
[335008337,1723740631984,-465.0,0.000107,2]
[335008338,1723740631995,-1453.93256707,0.000107,2]
[335008339,1723740632004,-286.06743293,0.000107,2]
[335008344,1723740637903,-652.16989619,0.000107,2]
[335008345,1723740637915,-19.24267088,0.000107,2]
[335008346,1723740637925,-574.02066912,0.000107,2]
[335008347,1723740637937,-270.9400001,0.000107,2]
[335008348,1723740638015,-495.35766088,0.000107,2]
[335008349,1723740638027,-781.5650526,0.000107,2]
[335008350,1723740638077,-374.9266173,0.000107,2]
[335008351,1723740638088,-1257.5209126,0.00010713,2]
[335008352,1723740638098,-3067.17171396,0.00010752,2]
[335008353,1723740638109,-860.27502339,0.0001079,2]
[335008354,1723740638119,-276.24,0.0001079,2]
[335008355,1723740638130,-499.99,0.00010799,2]
[335008356,1723740638139,-150.0,0.00010799,2]
[335008357,1723740638148,-164.42462269,0.00010799,2]
[335008358,1723740638157,-227.31243139,0.00010799,2]
[335008359,1723740638167,-2083.37294182,0.00010799,2]
[335008360,1723740638181,-303.44197528,0.00010799,2]
[335008361,1723740638190,-347.69615481,0.00010799,2]
[335008362,1723740638201,-155.0,0.00010799,2]
[335008363,1723740638210,-380.32741541,0.00010799,2]
[335008364,1723740638221,-15.93175934,0.000108,2]
[335008365,1723740638232,-771.07115909,0.000108,2]
[335008366,1723740638243,-5873.22356511,0.000108,2]
[335008367,1723740638284,-856.035,0.000108,2]
[335008423,1723740639800,848.09,8.219e-05,2]
[335008424,1723740639865,-3551.38360918,0.000108,2]
[335008425,1723740639876,-1765.90863635,0.000108,2]
[335008426,1723740639886,-562.4313,0.000108,2]
[335008427,1723740639895,-388.79,0.000108,2]
[335008428,1723740639905,-61.24193897,0.000108,2]
[335008429,1723740639927,-1658.33756663,0.000108,2]
[335008430,1723740639938,-610.1125504,0.000108,2]
[335008431,1723740639949,-2016.437266,0.000108,2]
[335008432,1723740639960,-1609.608,0.000108,2]
[335008433,1723740639971,-1749.79715678,0.000108,2]
[335008434,1723740639990,-1125.95213341,0.000108,2]
[335008435,1723740640001,-522.77982189,0.000108,2]
[335008436,1723740640012,-5921.71006796,0.000108,2]
[335008437,1723740640023,-1695.15659796,0.000108,2]
[335008438,1723740640034,-600.0,0.000108,3]
[335008439,1723740640044,-529.89195574,0.000108,2]
[335008440,1723740640055,-1043.21965598,0.000108,2]
[335008441,1723740640066,-379.92281536,0.000108,2]
[335008442,1723740640080,-546.96557292,0.000108,2]
[335008443,1723740640089,-4972.4898,0.000108,2]
[335008444,1723740640098,-150.0,0.00010847,2]
[335008445,1723740640107,-760.3907085,0.00010852,2]
[335008446,1723740640116,-536.3843632,0.00010852,2]
[335008447,1723740640125,-164.40260801,0.00010852,2]
[335008448,1723740640134,-211.0133722,0.00010852,2]
[335008449,1723740640144,-432.47832469,0.00010852,2]
[335008450,1723740640153,-255.19609183,0.00010852,2]
[335008451,1723740640162,-485.18668102,0.00010852,2]
[335008452,1723740640170,-357.45302385,0.00010852,2]
[335008453,1723740640180,-197.1386879,0.00010852,2]
[335008454,1723740640189,-203.41395605,0.00010861,2]
[335008455,1723740640198,-155.16643418,0.00010861,2]
[335008456,1723740640208,-526.89163581,0.00010861,2]
[335008457,1723740640217,-236.34424982,0.00010861,2]
[335008458,1723740640227,-348.22217889,0.00010861,2]
[335008459,1723740640236,-328.2488375,0.00010861,2]
[335008460,1723740640245,-367.87511774,0.00010861,2]
[335008461,1723740640255,-1482.99,0.00010861,2]
[335008462,1723740640264,-528.91996067,0.00010888,2]
[335008463,1723740640274,-709.9036,0.0001089,2]
[335008464,1723740640285,-155.0,0.0001089,2]
[335008465,1723740640294,-12789.32397648,0.00010899,2]
[335008469,1723740640411,-3109.7842,0.000109,2]
[335008471,1723740640421,-4989.8213,0.000109,2]
[335008473,1723740640432,-3329.8603,0.000109,2]
[335008475,1723740640442,-498.97932922,0.000109,2]
[335008477,1723740640453,-344.62556429,0.000109,2]
[335008480,1723740640463,-284.0,0.000109,2]
[335008483,1723740640484,-676.47483956,0.000109,2]
[335008485,1723740640495,-1931.68728118,0.000109,2]
[335008487,1723740640505,-302.98,0.000109,2]
[335008493,1723740640549,-848.09,0.00010473,2]
[335008495,1723740640558,-9039.27439423,0.000109,2]
[335008497,1723740640569,-3100.09378254,0.000109,2]
[335008528,1723740642879,-365.80180037,0.00010852,2]
[335008529,1723740642890,-282.63645764,0.00010852,2]
[335008530,1723740643064,-318.10776369,0.00010852,2]
[335008531,1723740643075,-155.0,0.00010861,2]
[335008532,1723740643084,-38.95163537,0.000109,2]
[335008535,1723740643452,-711.66079676,0.000109,2]
[335008539,1723740643464,-14469.66797685,0.000109,2]
[335008543,1723740643474,-231.17098339,0.000109,2]
[335008545,1723740643490,-8622.66212954,0.000109,2]
[335008553,1723740644730,-1507.29,0.000109,2]
[335008554,1723740644741,-20113.45808707,0.000109,2]
[335008555,1723740644751,-2861.9472,0.000109,2]
[335008556,1723740644760,-170.54579841,0.000109,2]
[335008557,1723740644770,-500.0,0.000109,2]
[335008558,1723740644779,-193863.9837,0.000109,2]
[335008559,1723740644792,-1136.01,0.000109,2]
[335008560,1723740644802,-1000.0,0.000109,2]
[335008561,1723740644811,-172.00474581,0.000109,2]
[335008562,1723740644821,-152.79080492,0.000109,2]
[335008563,1723740644831,-900.0,0.000109,3]
[335008564,1723740644841,-1026.30342348,0.000109,2]
[335008565,1723740644851,-376.09503936,0.000109,2]
[335008566,1723740644860,-150.0,0.00010904,2]
[335008567,1723740644871,-309.38389104,0.00010949,2]
[335008568,1723740644881,-309.38389104,0.00010949,2]
[335008569,1723740644892,-250.0,0.00010959,2]
[335008570,1723740644901,-150.0,0.00010959,2]
[335008571,1723740644910,-422.35,0.00010959,2]
[335008572,1723740644920,-2000.0,0.00010959,2]
[335008573,1723740644930,-200.0,0.00010973,2]
[335008574,1723740644940,-200.0,0.00010973,2]
[335008575,1723740644950,-200.42348818,0.00010973,2]
[335008576,1723740644960,-601.65421845,0.00010989,2]
[335008577,1723740644969,-653.85667512,0.00010989,2]
[335008578,1723740644978,-394.8954534,0.0001099,2]
[335008579,1723740644987,-394.8954534,0.0001099,2]
[335008580,1723740644997,-500.0,0.00010992,2]
[335008581,1723740645006,-501.49882417,0.00010992,2]
[335008582,1723740645016,-383.6206245,0.00010992,2]
[335008583,1723740645025,-12241.10267802,0.00010993,2]
[335008584,1723740645035,-2792.31920988,0.00010997,2]
[335008585,1723740645047,-250.04738977,0.00010999,2]
[335008586,1723740645057,-769.0,0.00011,2]
[335008587,1723740645066,-55192.31975448,0.00011,2]
[335008588,1723740645078,-1448.63415379,0.00011,2]
[335008589,1723740645089,-600.34827093,0.00011,2]
[335008590,1723740645101,-498.7999998,0.00011,2]
[335008591,1723740645112,-2721.87978134,0.00011,2]
[335008592,1723740645123,-4650.0,0.00011,2]
[335008593,1723740645134,-3953.81927455,0.00011,2]
[335008594,1723740645145,-877.60613837,0.00011,2]
[335008595,1723740645157,-1646.91813925,0.00011,2]
[335008596,1723740645168,-1039.9999,0.00011,2]
[335008597,1723740645183,-20879.00429641,0.00011,2]
[335008598,1723740645195,-5130.95572728,0.00011,2]
[335008599,1723740645205,-1381.28,0.00011,2]
[335008600,1723740645216,-1951.24999987,0.00011,2]
[335008601,1723740645227,-5453.45619711,0.00011,2]
[335008602,1723740645238,-666.41,0.00011,2]
[335008630,1723740646070,-155.0,0.00010989,2]
[335008631,1723740646080,-449.0,0.00011,2]
[335008632,1723740646091,-4148.01782332,0.00011,2]
[335008633,1723740646103,-3888.80813399,0.00011,2]
[335008634,1723740646114,-4365.26411129,0.00011,2]
[335008636,1723740646429,-5917.9735355,0.00011,2]
[335008637,1723740646447,-395.32957617,0.00011,2]
[335008638,1723740647517,-82.93230117,0.00011,2]
[335008639,1723740647543,-5360.8,0.00011,2]
[335008640,1723740647554,-28981.51271297,0.00011,2]
[335008641,1723740647565,-599.38775637,0.00011,2]
[335008642,1723740647576,-3110.28634999,0.00011,2]
[335008646,1723740942204,1586.8,9.922e-05,2]
[335008648,1723741152417,772.76,8.219e-05,2]
[335008649,1723741196563,200.0,9.975e-05,2]